[Event "DVM U10 2024"]
[Site "Duesseldorf"]
[Date "2024.12.27"]
[Round "2"]
[White "Yuksel, Arda Eren"]
[Black "Müller, Charlie Erik"]
[Result "1-0"]
[ECO "C65"]
[WhiteElo "1488"]
[BlackElo "1043"]
[Annotator "NA RC"]
[PlyCount "131"]
[EventDate "2024.12.23"]
[EventType "team-tourn"]
[EventRounds "7"]
[EventCountry "GER"]
[SourceTitle "playchess.com"]
[Source "ChessBase"]
[SourceQuality "1"]
[TimeControl "3300+5"]

1. e4 {[%emt 0:00:05]} e5 {[%emt 0:00:00]} 2. Nf3 {[%emt 0:00:15]} Nc6 {[%emt 0:00:06]} 3. Bb5 {[%emt 0:00:29]} d6 {[%emt 0:00:34]} 4. c3 {[%emt 0:00:23]} Nf6 {[%emt 0:01:06]} 5. d3 {[%emt 0:00:42]} Bg4 {[%emt 0:00:36]} 6. h3 {[%emt 0:01:06]} Be6 {[%emt 0:01:01]} 7. c4 {[%emt 0:01:57]} Be7 {[%emt 0:01:02]} 8. Nc3 {[%emt 0:00:29]} O-O {[%emt 0:00:43]} 9. Be3 {[%emt 0:00:57]} Nh5 {[%emt 0:02:43]} 10. d4 {[%emt 0:05:26]} exd4 {[%emt 0:07:34]} 11. Bxd4 {[%emt 0:01:39]} Nxd4 {[%emt 0:00:36]} 12. Nxd4 {[%emt 0:00:19]} c5 {[%emt 0:01:29]} 13. Nxe6 {[%emt 0:00:51]} fxe6 {[%emt 0:01:26]} 14. Qxh5 {[%emt 0:00:38]} a6 {[%emt 0:00:29]} 15. Ba4 {[%emt 0:01:00]} Bf6 {[%emt 0:00:29]} 16. Bc2 {[%emt 0:01:06]} Bd4 {[%emt 0:01:00]} 17. O-O {[%emt 0:02:36]} g6 {[%emt 0:02:59]} 18. Qg4 {[%emt 0:02:22]} e5 {[%emt 0:01:08]} 19. Ne2 {[%emt 0:02:26]} Rf6 {[%emt 0:04:12]} 20. Nxd4 {[%emt 0:01:38]} cxd4 {[%emt 0:00:14]} 21. Bb3 {[%emt 0:01:29]} Kg7 {[%emt 0:01:05]} 22. g3 {[%emt 0:02:13]} h5 {[%emt 0:01:25]} 23. Qe2 {[%emt 0:01:08]} Qb6 {[%emt 0:00:47]} 24. Rad1 {[%emt 0:01:09]} Raf8 {[%emt 0:01:20]} 25. Rd3 {[%emt 0:01:58]} Kh6 {[%emt 0:00:45]} 26. Qd2+ {[%emt 0:00:51]} g5 {[%emt 0:00:21]} 27. h4 {[%emt 0:00:27]} Rg8 {[%emt 0:00:38]} 28. c5 {[%emt 0:00:41]} Qd8 {[%emt 0:01:54]} 29. Bxg8 {[%emt 0:00:26]} Qxg8 {[%emt 0:00:17]} 30. cxd6 {[%emt 0:00:27]} Rxd6 {[%emt 0:00:12]} 31. a3 {[%emt 0:00:28]} Kh7 {[%emt 0:00:15]} 32. hxg5 {[%emt 0:00:24]} Rg6 {[%emt 0:00:16]} 33. f4 {[%emt 0:00:18]} exf4 {[%emt 0:00:19]} 34. Qxf4 {[%emt 0:00:35]} Qc8 {[%emt 0:00:23]} 35. Qf7+ {[%emt 0:00:55]} Rg7 {[%emt 0:00:09]} 36. Qf5+ {[%emt 0:01:05]} Qxf5 {[%emt 0:00:20]} 37. Rxf5 {[%emt 0:00:17]} Rc7 {[%emt 0:00:11]} 38. Rxd4 {[%emt 0:00:42]} Rc1+ {[%emt 0:00:08]} 39. Rf1 {[%emt 0:00:14]} Rc2 {[%emt 0:00:15]} 40. Rd6 {[%emt 0:00:24]} Rc7 {[%emt 0:00:26]} 41. Rff6 {[%emt 0:00:17]} Rc1+ {[%emt 0:00:13]} 42. Kh2 {[%emt 0:00:12]} Rc2+ {[%emt 0:00:11]} 43. Kh3 {[%emt 0:00:16]} Rc4 {[%emt 0:00:07]} 44. Rf7+ {[%emt 0:00:23]} Kg8 {[%emt 0:00:16]} 45. g6 {[%emt 0:00:38]} Rc8 {[%emt 0:00:06]} 46. Rdd7 {[%emt 0:00:25]} Re8 {[%emt 0:00:27]} 47. Rg7+ {[%emt 0:00:20]} Kh8 {[%emt 0:00:10]} 48. Rh7+ {[%emt 0:00:22]} Kg8 {[%emt 0:00:02]} 49. Rdg7+ {[%emt 0:00:45]} Kf8 {[%emt 0:00:11]} 50. Rxb7 {[%emt 0:00:46]} Kg8 {[%emt 0:00:15]} 51. Rhf7 {[%emt 0:00:37]} Rd8 {[%emt 0:00:22]} 52. g7 {[%emt 0:00:21]} Kh7 {[%emt 0:00:27]} 53. Kh4 {[%emt 0:00:26]} Kg8 {[%emt 0:00:24]} 54. Kxh5 {[%emt 0:00:29]} a5 {[%emt 0:00:31]} 55. Rbd7 {[%emt 0:00:52]} Re8 {[%emt 0:00:13]} 56. Kg6 {[%emt 0:00:29]} Re6+ {[%emt 0:00:30]} 57. Rf6 {[%emt 0:00:51]} Re8 {[%emt 0:00:10]} 58. Rf8+ {[%emt 0:00:34]} Rxf8 {[%emt 0:00:17]} 59. gxf8=Q+ Kxf8 60. Kf6 {[%emt 0:00:49]} Ke8 {[%emt 0:00:28]} 61. Rh7 {[%emt 0:00:21]} Kd8 {[%emt 0:00:30]} 62. Ke6 {[%emt 0:00:13]} Kc8 {[%emt 0:00:06]} 63. Kd6 {[%emt 0:00:05]} Kb8 {[%emt 0:00:09]} 64. Kc6 {[%emt 0:00:09]} Ka8 {[%emt 0:00:05]} 65. Kb6 {[%emt 0:00:06]} Kb8 {[%emt 0:00:07]} 66. Rh8# {[%emt 0:00:38]} 1-0

[Event "DVM U10 2024"]
[Site "Duesseldorf"]
[Date "2024.12.27"]
[Round "2"]
[White "Gheng, Hannes Lucas"]
[Black "Jöhnke, Thore"]
[Result "1-0"]
[ECO "C65"]
[WhiteElo "1482"]
[BlackElo "861"]
[Annotator "NA RC"]
[PlyCount "97"]
[EventDate "2024.12.23"]
[EventType "team-tourn"]
[EventRounds "7"]
[EventCountry "GER"]
[SourceTitle "playchess.com"]
[Source "ChessBase"]
[SourceQuality "1"]
[TimeControl "3300+5"]

1. e4 {[%emt 0:00:02]} e5 {[%emt 0:00:07]} 2. Nf3 {[%emt 0:00:04]} Nc6 {[%emt 0:00:14]} 3. Bb5 {[%emt 0:00:05]} Nf6 {[%emt 0:00:10]} 4. d3 {[%emt 0:00:47]} Bc5 {[%emt 0:00:08]} 5. O-O {[%emt 0:00:05]} d6 {[%emt 0:00:12]} 6. c3 {[%emt 0:00:13]} O-O {[%emt 0:00:12]} 7. Nbd2 {[%emt 0:00:23]} Bg4 {[%emt 0:00:12]} 8. h3 {[%emt 0:00:24]} Bh5 {[%emt 0:00:08]} 9. Re1 {[%emt 0:00:15]} a6 {[%emt 0:00:20]} 10. Ba4 {[%emt 0:00:13]} b5 {[%emt 0:00:12]} 11. Bc2 {[%emt 0:00:06]} Qd7 {[%emt 0:00:23]} 12. a4 {[%emt 0:00:21]} b4 {[%emt 0:00:37]} 13. Nf1 {[%emt 0:01:16]} Ne7 {[%emt 0:01:56]} 14. Ng3 {[%emt 0:00:46]} Bg6 {[%emt 0:00:44]} 15. d4 {[%emt 0:00:49]} exd4 {[%emt 0:00:10]} 16. cxd4 {[%emt 0:00:18]} Bb6 {[%emt 0:00:20]} 17. a5 {[%emt 0:00:29]} Ba7 {[%emt 0:00:28]} 18. Ba4 {[%emt 0:00:47]} c6 {[%emt 0:00:29]} 19. e5 {[%emt 0:01:45]} dxe5 {[%emt 0:00:55]} 20. Nxe5 {[%emt 0:02:52]} Qc7 {[%emt 0:01:05]} 21. Bf4 {[%emt 0:04:01]} Qb7 {[%emt 0:00:44]} 22. Rc1 {[%emt 0:00:44]} Rac8 {[%emt 0:00:18]} 23. Nc4 {[%emt 0:06:26]} Ned5 {[%emt 0:00:40]} 24. Nd6 {[%emt 0:00:27]} Qd7 {[%emt 0:00:59]} 25. Nxc8 {[%emt 0:01:08]} Nxf4 {[%emt 0:00:47]} 26. Nxa7 {[%emt 0:01:35]} Qxa7 {[%emt 0:00:21]} 27. Rxc6 {[%emt 0:07:02]} Qb7 {[%emt 0:00:40]} 28. Qf3 {[%emt 0:03:22]} Nd3 {[%emt 0:00:46]} 29. Ra1 {[%emt 0:01:15]} Nxb2 {[%emt 0:00:47]} 30. Rxf6 {[%emt 0:01:17]} Be4 {[%emt 0:01:02]} 31. Nxe4 {[%emt 0:00:18]} gxf6 {[%emt 0:00:13]} 32. Nxf6+ {[%emt 0:00:07]} Kg7 {[%emt 0:00:29]} 33. Qxb7 {[%emt 0:00:12]} Kxf6 {[%emt 0:00:11]} 34. Qc6+ {[%emt 0:02:32]} Kg7 {[%emt 0:00:24]} 35. Qd6 {[%emt 0:00:43]} Nxa4 {[%emt 0:00:33]} 36. Qg3+ {[%emt 0:00:19]} Kf6 {[%emt 0:00:22]} 37. Rxa4 {[%emt 0:00:13]} Re8 {[%emt 0:00:16]} 38. Qf4+ {[%emt 0:00:43]} Kg7 {[%emt 0:00:19]} 39. Rxb4 {[%emt 0:01:10]} Re1+ {[%emt 0:00:20]} 40. Kh2 {[%emt 0:00:12]} Re8 {[%emt 0:00:13]} 41. Qg5+ {[%emt 0:00:25]} Kf8 {[%emt 0:00:12]} 42. Qf6 {[%emt 0:00:31]} Kg8 {[%emt 0:00:18]} 43. Rb7 {[%emt 0:00:58]} Rf8 {[%emt 0:00:15]} 44. Re7 {[%emt 0:00:29]} h6 {[%emt 0:00:45]} 45. Re3 {[%emt 0:00:22]} Rc8 {[%emt 0:00:18]} 46. Qe7 {[%emt 0:00:22]} h5 {[%emt 0:00:37]} 47. Rg3+ {[%emt 0:00:36]} Kh7 {[%emt 0:00:30]} 48. Qxf7+ {[%emt 0:00:14]} Kh8 {[%emt 0:00:59]} 49. Qxh5# {[%emt 0:00:50]} 1-0

[Event "DVM U10 2024"]
[Site "Duesseldorf"]
[Date "2024.12.27"]
[Round "2"]
[White "von Gehlen, Elian"]
[Black "Mueller, Konstantin"]
[Result "0-1"]
[ECO "B40"]
[WhiteElo "1464"]
[BlackElo "1957"]
[Annotator "RC"]
[PlyCount "74"]
[EventDate "2024.12.23"]
[EventType "team-tourn"]
[EventRounds "7"]
[EventCountry "GER"]
[SourceTitle "playchess.com"]
[Source "ChessBase"]
[SourceQuality "1"]
[TimeControl "3300+5"]

1. e4 {[%emt 0:00:01]} c5 {[%emt 0:00:07]} 2. Nf3 {[%emt 0:00:07]} e6 {[%emt 0:00:05]} 3. c3 {[%emt 0:00:08]} Nf6 {[%emt 0:00:16]} 4. Bd3 {[%emt 0:00:11]} Nc6 {[%emt 0:00:42]} 5. Bc2 {[%emt 0:00:11]} Be7 {[%emt 0:01:53]} 6. O-O {[%emt 0:00:16]} O-O {[%emt 0:00:08]} 7. d4 {[%emt 0:00:08]} cxd4 {[%emt 0:02:40]} 8. cxd4 {[%emt 0:00:09]} Nb4 {[%emt 0:01:59]} 9. e5 {[%emt 0:00:37]} Nxc2 {[%emt 0:00:35]} 10. exf6 {[%emt 0:00:24]} Nxa1 {[%emt 0:00:13]} 11. fxe7 {[%emt 0:00:08]} Qxe7 {[%emt 0:00:05]} 12. Bd2 {[%emt 0:00:11]} b5 {[%emt 0:03:29]} 13. Nc3 {[%emt 0:00:42]} b4 {[%emt 0:02:19]} 14. Ne4 {[%emt 0:00:22]} Bb7 {[%emt 0:00:26]} 15. Re1 {[%emt 0:00:15]} Rfc8 {[%emt 0:05:28]} 16. Qxa1 {[%emt 0:00:37]} Bxe4 {[%emt 0:02:22]} 17. Rxe4 {[%emt 0:00:15]} Rc2 {[%emt 0:00:13]} 18. Re2 {[%emt 0:00:29]} Rac8 {[%emt 0:00:40]} 19. Qb1 {[%emt 0:00:29]} d6 {[%emt 0:01:11]} 20. d5 {[%emt 0:01:04]} e5 {[%emt 0:10:20]} 21. Ne1 {[%emt 0:05:19]} R2c5 {[%emt 0:01:24]} 22. Qe4 {[%emt 0:00:32]} Qb7 {[%emt 0:02:48]} 23. Bxb4 {[%emt 0:02:08]} Rc4 {[%emt 0:00:34]} 24. Qf5 {[%emt 0:03:48]} Rxb4 {[%emt 0:01:18]} 25. a3 {[%emt 0:01:22]} Rd4 {[%emt 0:00:48]} 26. Qg5 {[%emt 0:01:33]} Rxd5 {[%emt 0:00:28]} 27. Rc2 {[%emt 0:00:36]} Rdc5 {[%emt 0:00:46]} 28. Rd2 {[%emt 0:01:46]} Rc1 {[%emt 0:00:32]} 29. Re2 {[%emt 0:00:16]} h6 {[%emt 0:00:43]} 30. Qd2 {[%emt 0:00:52]} R8c2 {[%emt 0:00:14]} 31. Qxd6 {[%emt 0:00:31]} Rxe2 {[%emt 0:00:25]} 32. Qd8+ {[%emt 0:00:14]} Kh7 {[%emt 0:00:08]} 33. h3 {[%emt 0:00:06]} Rcxe1+ {[%emt 0:00:14]} 34. Kh2 {[%emt 0:00:08]} Rxf2 {[%emt 0:00:10]} 35. Qh8+ {[%emt 0:00:07]} Kxh8 {[%emt 0:00:06]} 36. Kg3 {[%emt 0:00:04]} Qxg2+ {[%emt 0:00:05]} 37. Kh4 {[%emt 0:00:06]} Qg5# {[%emt 0:00:05]} 0-1

[Event "DVM U10 2024"]
[Site "Duesseldorf"]
[Date "2024.12.27"]
[Round "2"]
[White "von Gehlen, Samuel"]
[Black "Stentrup, Levi"]
[Result "1-0"]
[ECO "C25"]
[WhiteElo "1459"]
[BlackElo "1185"]
[Annotator "NA RC"]
[PlyCount "45"]
[EventDate "2024.12.23"]
[EventType "team-tourn"]
[EventRounds "7"]
[EventCountry "GER"]
[SourceTitle "playchess.com"]
[Source "ChessBase"]
[SourceQuality "1"]
[TimeControl "3300+5"]

1. e4 {[%emt 0:00:01]} e5 {[%emt 0:00:04]} 2. Nc3 {[%emt 0:00:06]} Nc6 {[%emt 0:00:04]} 3. Bc4 {[%emt 0:00:06]} Bc5 {[%emt 0:00:04]} 4. Qg4 {[%emt 0:00:06]} Qf6 {[%emt 0:00:15]} 5. Nd5 {[%emt 0:00:08]} Qxf2+ {[%emt 0:00:46]} 6. Kd1 {[%emt 0:00:07]} Bb6 {[%emt 0:00:06]} 7. Nxb6 {[%emt 0:01:46]} axb6 {[%emt 0:00:08]} 8. Qxg7 {[%emt 0:00:22]} Qf6 {[%emt 0:00:02]} 9. Qxf6 {[%emt 0:00:59]} Nxf6 {[%emt 0:00:05]} 10. d3 {[%emt 0:00:49]} Rg8 {[%emt 0:00:12]} 11. g3 {[%emt 0:00:34]} d5 {[%emt 0:00:45]} 12. exd5 {[%emt 0:01:18]} Bg4+ {[%emt 0:00:07]} 13. Kd2 {[%emt 0:01:31]} Ne7 {[%emt 0:00:25]} 14. h3 {[%emt 0:00:28]} Bd7 {[%emt 0:01:06]} 15. g4 {[%emt 0:02:07]} Nexd5 {[%emt 0:00:29]} 16. Nf3 {[%emt 0:00:50]} h5 {[%emt 0:05:35]} 17. g5 {[%emt 0:00:21]} b5 {[%emt 0:00:20]} 18. Bb3 {[%emt 0:00:22]} Bc6 {[%emt 0:00:37]} 19. gxf6 {[%emt 0:01:09]} Nxf6 {[%emt 0:00:05]} 20. Rf1 {[%emt 0:00:57]} Rg2+ {[%emt 0:00:39]} 21. Kc3 {[%emt 0:00:46]} e4 {[%emt 0:01:24]} 22. Ne5 {[%emt 0:02:59]} Rg5 {[%emt 0:01:03]} 23. Bxg5 {[%emt 0:00:16]} 1-0

[Event "DVM U10 2024"]
[Site "Duesseldorf"]
[Date "2024.12.27"]
[Round "2"]
[White "Wilting, Oskar"]
[Black "Busch, Jonathan Luis"]
[Result "0-1"]
[ECO "B13"]
[WhiteElo "1454"]
[BlackElo "1655"]
[Annotator "NA RC"]
[PlyCount "68"]
[EventDate "2024.12.23"]
[EventType "team-tourn"]
[EventRounds "7"]
[EventCountry "GER"]
[SourceTitle "playchess.com"]
[Source "ChessBase"]
[SourceQuality "1"]
[TimeControl "3300+5"]

1. d4 {[%emt 0:00:03]} Nf6 {[%emt 0:00:05]} 2. Nc3 {[%emt 0:00:11]} d5 {[%emt 0:00:05]} 3. Bf4 {[%emt 0:00:09]} c5 {[%emt 0:00:13]} 4. e3 {[%emt 0:00:27]} cxd4 {[%emt 0:00:06]} 5. exd4 {[%emt 0:00:09]} a6 {[%emt 0:00:24]} 6. Bd3 {[%emt 0:00:33]} Bg4 {[%emt 0:00:24]} 7. f3 {[%emt 0:00:19]} Bd7 {[%emt 0:00:19]} 8. Nge2 {[%emt 0:00:29]} Nc6 {[%emt 0:00:10]} 9. g4 {[%emt 0:00:38]} h6 {[%emt 0:00:23]} 10. h4 {[%emt 0:01:19]} e6 {[%emt 0:04:53]} 11. Qd2 {[%emt 0:00:35]} Be7 {[%emt 0:00:36]} 12. O-O-O {[%emt 0:00:21]} b5 {[%emt 0:02:03]} 13. g5 {[%emt 0:00:54]} Nh5 {[%emt 0:02:06]} 14. Be3 {[%emt 0:02:11]} b4 {[%emt 0:01:09]} 15. Nb1 {[%emt 0:00:56]} b3 {[%emt 0:02:14]} 16. axb3 {[%emt 0:01:01]} Nb4 {[%emt 0:01:41]} 17. Nbc3 {[%emt 0:00:39]} Qa5 {[%emt 0:00:58]} 18. Kb1 {[%emt 0:02:12]} Bb5 {[%emt 0:04:29]} 19. gxh6 {[%emt 0:01:42]} Qb6 {[%emt 0:05:01]} 20. hxg7 {[%emt 0:02:07]} Nxg7 {[%emt 0:00:30]} 21. Rdg1 {[%emt 0:00:58]} Nh5 {[%emt 0:02:15]} 22. Ng3 {[%emt 0:04:39]} Nxg3 {[%emt 0:03:13]} 23. Rxg3 {[%emt 0:00:15]} Rc8 {[%emt 0:01:42]} 24. Rg4 {[%emt 0:03:03]} Qa5 {[%emt 0:00:39]} 25. Bxb5+ {[%emt 0:01:13]} axb5 {[%emt 0:00:34]} 26. Kc1 {[%emt 0:02:47]} Qa1+ {[%emt 0:03:52]} 27. Nb1 {[%emt 0:00:27]} Na2+ {[%emt 0:00:21]} 28. Kd1 {[%emt 0:00:39]} Qxb1+ {[%emt 0:00:08]} 29. Ke2 {[%emt 0:00:21]} Qxh1 {[%emt 0:00:13]} 30. Qa5 {[%emt 0:00:23]} Rxc2+ {[%emt 0:00:34]} 31. Bd2 {[%emt 0:00:38]} Rxd2+ {[%emt 0:00:28]} 32. Kxd2 {[%emt 0:00:21]} Bb4+ {[%emt 0:00:14]} 33. Qxb4 {[%emt 0:00:22]} Nxb4 {[%emt 0:00:48]} 34. Kc3 {[%emt 0:00:10]} Qe1# {[%emt 0:00:19]} 0-1

[Event "DVM U10 2024"]
[Site "Duesseldorf"]
[Date "2024.12.27"]
[Round "2"]
[White "Glavev, Victor"]
[Black "Fischer, Emil Fiete"]
[Result "1/2-1/2"]
[ECO "C54"]
[WhiteElo "1443"]
[BlackElo "1050"]
[Annotator "NA RC"]
[PlyCount "82"]
[EventDate "2024.12.23"]
[EventType "team-tourn"]
[EventRounds "7"]
[EventCountry "GER"]
[SourceTitle "playchess.com"]
[Source "ChessBase"]
[SourceQuality "1"]
[TimeControl "3300+5"]

1. e4 {[%emt 0:00:01]} e5 {[%emt 0:00:06]} 2. Nf3 {[%emt 0:00:03]} Nc6 {[%emt 0:00:13]} 3. d4 {[%emt 0:00:05]} exd4 {[%emt 0:00:11]} 4. Bc4 {[%emt 0:00:03]} Bc5 {[%emt 0:00:25]} 5. c3 {[%emt 0:00:04]} Nf6 {[%emt 0:00:33]} 6. cxd4 {[%emt 0:00:19]} Bb4+ {[%emt 0:00:17]} 7. Bd2 {[%emt 0:00:28]} Bxd2+ {[%emt 0:00:10]} 8. Nbxd2 {[%emt 0:00:19]} Ng4 {[%emt 0:00:18]} 9. h3 {[%emt 0:00:11]} Nf6 {[%emt 0:00:10]} 10. O-O {[%emt 0:00:08]} d5 {[%emt 0:00:10]} 11. Bb5 {[%emt 0:00:25]} dxe4 {[%emt 0:00:16]} 12. Re1 {[%emt 0:00:13]} O-O {[%emt 0:00:19]} 13. Nxe4 {[%emt 0:00:06]} Bf5 {[%emt 0:00:28]} 14. Ng3 {[%emt 0:00:18]} Bg6 {[%emt 0:00:18]} 15. Rc1 {[%emt 0:01:32]} Nb4 {[%emt 0:00:25]} 16. Qb3 {[%emt 0:00:41]} Nbd5 {[%emt 0:00:35]} 17. Bc4 {[%emt 0:00:43]} Rb8 {[%emt 0:00:48]} 18. Re5 {[%emt 0:02:13]} c6 {[%emt 0:01:18]} 19. Nh4 {[%emt 0:04:19]} Re8 {[%emt 0:03:43]} 20. Nxg6 {[%emt 0:00:59]} hxg6 {[%emt 0:00:53]} 21. Rd1 {[%emt 0:01:42]} Qd6 {[%emt 0:01:25]} 22. Rde1 {[%emt 0:01:42]} Rxe5 {[%emt 0:00:26]} 23. dxe5 {[%emt 0:00:16]} Qe7 {[%emt 0:00:21]} 24. Kf1 {[%emt 0:00:41]} Nd7 {[%emt 0:00:25]} 25. Bxd5 {[%emt 0:00:26]} cxd5 {[%emt 0:00:16]} 26. Qxd5 {[%emt 0:00:13]} Nb6 {[%emt 0:00:43]} 27. Qd6 {[%emt 0:00:14]} Qxd6 28. exd6 {[%emt 0:00:18]} Rd8 {[%emt 0:00:44]} 29. Rd1 {[%emt 0:00:14]} Kf8 {[%emt 0:00:10]} 30. Ne4 {[%emt 0:00:26]} Nc4 {[%emt 0:00:32]} 31. b3 {[%emt 0:00:34]} Ne5 {[%emt 0:00:47]} 32. Nc5 {[%emt 0:00:37]} b6 {[%emt 0:00:20]} 33. f4 {[%emt 0:01:30]} Nc6 {[%emt 0:01:41]} 34. Na6 {[%emt 0:00:53]} Ke8 {[%emt 0:01:31]} 35. Ke2 {[%emt 0:00:56]} Kd7 {[%emt 0:01:40]} 36. Ke3 {[%emt 0:00:46]} Ke6 {[%emt 0:00:46]} 37. Nc7+ {[%emt 0:00:49]} Kd7 {[%emt 0:00:15]} 38. g4 {[%emt 0:00:50]} Na5 {[%emt 0:00:41]} 39. Ke4 {[%emt 0:01:19]} Nb7 {[%emt 0:00:48]} 40. Kd5 {[%emt 0:00:40]} Nxd6 {[%emt 0:01:15]} 41. Na6 {[%emt 0:00:39]} Ke7 {[%emt 0:00:39]} 1/2-1/2

[Event "DVM U10 2024"]
[Site "Duesseldorf"]
[Date "2024.12.27"]
[Round "2"]
[White "Trunz, Daniel"]
[Black "Najjar, Anton"]
[Result "1-0"]
[ECO "B22"]
[WhiteElo "1440"]
[BlackElo "933"]
[Annotator "NA RC"]
[PlyCount "49"]
[EventDate "2024.12.23"]
[EventType "team-tourn"]
[EventRounds "7"]
[EventCountry "GER"]
[SourceTitle "playchess.com"]
[Source "ChessBase"]
[SourceQuality "1"]
[TimeControl "3300+5"]

1. e4 {[%emt 0:00:04]} c5 {[%emt 0:00:02]} 2. c3 {[%emt 0:00:40]} Nf6 {[%emt 0:00:07]} 3. e5 {[%emt 0:00:53]} Nd5 {[%emt 0:00:07]} 4. Bc4 {[%emt 0:01:20]} e6 {[%emt 0:00:19]} 5. Nf3 {[%emt 0:01:56]} Be7 {[%emt 0:00:16]} 6. O-O {[%emt 0:00:57]} O-O {[%emt 0:00:09]} 7. d4 {[%emt 0:01:12]} cxd4 {[%emt 0:00:13]} 8. cxd4 {[%emt 0:01:42]} Bh4 {[%emt 0:01:01]} 9. Ne1 {[%emt 0:04:32]} Bg5 {[%emt 0:00:33]} 10. Nd2 {[%emt 0:03:11]} d6 {[%emt 0:00:44]} 11. exd6 {[%emt 0:03:24]} Qxd6 {[%emt 0:00:31]} 12. Ne4 {[%emt 0:02:49]} Qb4 {[%emt 0:00:56]} 13. Nxg5 {[%emt 0:01:39]} Qxc4 {[%emt 0:00:29]} 14. Qh5 {[%emt 0:03:19]} h6 {[%emt 0:00:31]} 15. Ngf3 {[%emt 0:01:55]} b6 {[%emt 0:00:22]} 16. Qg4 {[%emt 0:00:59]} Ba6 {[%emt 0:00:22]} 17. Nd2 {[%emt 0:01:49]} Qb5 {[%emt 0:00:34]} 18. Kh1 {[%emt 0:02:48]} Nc6 {[%emt 0:01:12]} 19. Rg1 {[%emt 0:01:27]} Ndb4 {[%emt 0:00:38]} 20. Ne4 {[%emt 0:01:26]} Nd3 {[%emt 0:00:28]} 21. Bxh6 {[%emt 0:01:47]} g6 {[%emt 0:00:56]} 22. Nxd3 {[%emt 0:01:32]} Qxd3 {[%emt 0:00:39]} 23. Nf6+ {[%emt 0:00:50]} Kh8 {[%emt 0:00:29]} 24. Qh4 {[%emt 0:01:08]} Nxd4 {[%emt 0:01:41]} 25. Bxf8# {[%emt 0:00:47]} 1-0

[Event "DVM U10 2024"]
[Site "Duesseldorf"]
[Date "2024.12.27"]
[Round "2"]
[White "Vlad, Mark"]
[Black "Jiang, Alexander D"]
[Result "1-0"]
[ECO "C01"]
[WhiteElo "1439"]
[BlackElo "1958"]
[Annotator "RC"]
[PlyCount "73"]
[EventDate "2024.12.23"]
[EventType "team-tourn"]
[EventRounds "7"]
[EventCountry "GER"]
[SourceTitle "playchess.com"]
[Source "ChessBase"]
[SourceQuality "1"]
[TimeControl "3300+5"]

1. e4 {[%emt 0:00:03]} e6 {[%emt 0:00:07]} 2. d4 {[%emt 0:00:07]} d5 {[%emt 0:00:06]} 3. exd5 {[%emt 0:00:18]} exd5 {[%emt 0:00:10]} 4. c4 {[%emt 0:00:06]} Nf6 {[%emt 0:00:43]} 5. Nc3 {[%emt 0:00:28]} Bb4 {[%emt 0:00:35]} 6. Bg5 {[%emt 0:01:13]} dxc4 {[%emt 0:07:55]} 7. Bxc4 {[%emt 0:01:13]} O-O {[%emt 0:00:46]} 8. Nge2 {[%emt 0:01:36]} h6 {[%emt 0:00:51]} 9. Bxf6 {[%emt 0:01:22]} Qxf6 {[%emt 0:00:10]} 10. O-O {[%emt 0:00:38]} Bd6 {[%emt 0:01:30]} 11. Ng3 {[%emt 0:03:07]} Nc6 {[%emt 0:00:38]} 12. d5 {[%emt 0:01:18]} Ne5 {[%emt 0:02:47]} 13. Bb3 {[%emt 0:01:45]} Qh4 {[%emt 0:04:07]} 14. h3 {[%emt 0:03:47]} Bxh3 {[%emt 0:01:42]} 15. gxh3 {[%emt 0:02:33]} Qxh3 {[%emt 0:00:13]} 16. Qh5 {[%emt 0:00:13]} Qd7 {[%emt 0:01:31]} 17. Nce4 {[%emt 0:02:34]} Kh7 {[%emt 0:03:12]} 18. Nf5 {[%emt 0:02:15]} Kg8 {[%emt 0:03:00]} 19. Nxh6+ {[%emt 0:00:42]} Kh7 {[%emt 0:02:37]} 20. Nxf7+ {[%emt 0:00:18]} Kg8 {[%emt 0:00:02]} 21. Nxe5 {[%emt 0:00:34]} Bxe5 {[%emt 0:01:34]} 22. d6+ {[%emt 0:00:28]} Rf7 {[%emt 0:00:54]} 23. Qxe5 {[%emt 0:00:52]} Re8 {[%emt 0:02:28]} 24. Bxf7+ {[%emt 0:00:21]} Qxf7 {[%emt 0:00:26]} 25. dxc7 {[%emt 0:01:49]} Rxe5 {[%emt 0:00:29]} 26. c8=Q+ {[%emt 0:00:15]} Kh7 {[%emt 0:00:09]} 27. Ng3 {[%emt 0:00:28]} Rg5 {[%emt 0:00:36]} 28. Qh3+ {[%emt 0:00:30]} Kg8 {[%emt 0:00:01]} 29. Rac1 {[%emt 0:00:22]} Qf3 {[%emt 0:00:40]} 30. Rc8+ {[%emt 0:00:22]} Kf7 {[%emt 0:00:01]} 31. Qd7+ {[%emt 0:00:25]} Kg6 {[%emt 0:00:41]} 32. Qe6+ {[%emt 0:00:50]} Kh7 {[%emt 0:00:15]} 33. Qh3+ {[%emt 0:00:40]} Kg6 {[%emt 0:00:05]} 34. Qg2 {[%emt 0:01:08]} Qf7 {[%emt 0:00:56]} 35. Qe4+ {[%emt 0:00:27]} Kf6 {[%emt 0:00:25]} 36. Qf4+ {[%emt 0:00:19]} Ke7 {[%emt 0:00:43]} 37. Re1+ {[%emt 0:01:00]} 1-0

[Event "DVM U10 2024"]
[Site "Duesseldorf"]
[Date "2024.12.27"]
[Round "2"]
[White "Thotli, Jathin Krishna"]
[Black "Ju, Eric Zirui"]
[Result "0-1"]
[ECO "B50"]
[WhiteElo "1422"]
[BlackElo "1126"]
[Annotator "NA RC"]
[PlyCount "46"]
[EventDate "2024.12.23"]
[EventType "team-tourn"]
[EventRounds "7"]
[EventCountry "GER"]
[SourceTitle "playchess.com"]
[Source "ChessBase"]
[SourceQuality "1"]
[TimeControl "3300+5"]

1. e4 {[%emt 0:00:04]} c5 {[%emt 0:00:09]} 2. Nf3 {[%emt 0:00:03]} d6 {[%emt 0:00:08]} 3. Bc4 {[%emt 0:00:05]} e6 {[%emt 0:00:36]} 4. d4 {[%emt 0:00:12]} cxd4 {[%emt 0:00:27]} 5. Qxd4 {[%emt 0:00:09]} Nc6 {[%emt 0:00:29]} 6. Qd3 {[%emt 0:00:33]} Nge7 {[%emt 0:00:36]} 7. O-O {[%emt 0:00:20]} d5 {[%emt 0:00:34]} 8. Bb5 {[%emt 0:01:45]} Bd7 {[%emt 0:00:43]} 9. exd5 {[%emt 0:00:18]} Nxd5 {[%emt 0:00:30]} 10. Re1 {[%emt 0:03:07]} Be7 {[%emt 0:00:50]} 11. Ne5 {[%emt 0:02:09]} Nxe5 {[%emt 0:02:43]} 12. Rxe5 {[%emt 0:00:19]} a6 {[%emt 0:01:09]} 13. Bc4 {[%emt 0:02:43]} Nf6 {[%emt 0:01:17]} 14. Bg5 {[%emt 0:06:42]} O-O {[%emt 0:00:49]} 15. Qg3 {[%emt 0:02:50]} Bd6 {[%emt 0:01:46]} 16. Bh6 {[%emt 0:00:46]} Nh5 {[%emt 0:01:27]} 17. Qg4 {[%emt 0:00:00]} Bxe5 {[%emt 0:00:31]} 18. Qxh5 {[%emt 0:00:07]} Bxb2 {[%emt 0:01:28]} 19. Bd3 {[%emt 0:00:02]} g6 {[%emt 0:01:20]} 20. Qc5 {[%emt 0:00:16]} Re8 {[%emt 0:00:44]} 21. c3 {[%emt 0:00:22]} Qh4 {[%emt 0:01:15]} 22. Be3 {[%emt 0:01:31]} Bxa1 {[%emt 0:00:54]} 23. g3 {[%emt 0:01:58]} Qh5 {[%emt 0:00:47]} 0-1